Workbook

Sheet Отчет о движении денеж. средств
B1: Движение денежных средств Отчет
B3: Начало финансового года: | D3: Пусковые средства | E3: =UPPER(TEXT(ДатаНачалаФинансовогоГода,"МММ")) -> ЯНВ | F3: =UPPER(TEXT(EOMONTH(ДатаНачалаФинансовогоГода,1),"МММ")) -> ФЕВ | G3: =UPPER(TEXT(EOMONTH(ДатаНачалаФинансовогоГода,2),"МММ")) -> МАР | H3: =UPPER(TEXT(EOMONTH(ДатаНачалаФинансовогоГода,3),"МММ")) -> АПР | I3: =UPPER(TEXT(EOMONTH(ДатаНачалаФинансовогоГода,4),"МММ")) -> МАЙ | J3: =UPPER(TEXT(EOMONTH(ДатаНачалаФинансовогоГода,5),"МММ")) -> ИЮН | K3: =UPPER(TEXT(EOMONTH(ДатаНачалаФинансовогоГода,6),"МММ")) -> ИЮЛ | L3: =UPPER(TEXT(EOMONTH(ДатаНачалаФинансовогоГода,7),"МММ")) -> АВГ | M3: =UPPER(TEXT(EOMONTH(ДатаНачалаФинансовогоГода,8),"МММ")) -> СЕН | N3: =UPPER(TEXT(EOMONTH(ДатаНачалаФинансовогоГода,9),"МММ")) -> ОКТ | O3: =UPPER(TEXT(EOMONTH(ДатаНачалаФинансовогоГода,10),"МММ")) -> НОЯ | P3: =UPPER(TEXT(EOMONTH(ДатаНачалаФинансовогоГода,11),"МММ")) -> ДЕК | R3: Итого
B4: 2012-01-05 | D4: ОЦЕНКА | E4: =ДатаНачалаФинансовогоГода -> 2012-01-05 | F4: =EOMONTH(E4,0)+DAY(ДатаНачалаФинансовогоГода) -> 2012-02-05 | G4: =EOMONTH(F4,0)+DAY(ДатаНачалаФинансовогоГода) -> 2012-03-05 | H4: =EOMONTH(G4,0)+DAY(ДатаНачалаФинансовогоГода) -> 2012-04-05 | I4: =EOMONTH(H4,0)+DAY(ДатаНачалаФинансовогоГода) -> 2012-05-05 | J4: =EOMONTH(I4,0)+DAY(ДатаНачалаФинансовогоГода) -> 2012-06-05 | K4: =EOMONTH(J4,0)+DAY(ДатаНачалаФинансовогоГода) -> 2012-07-05 | L4: =EOMONTH(K4,0)+DAY(ДатаНачалаФинансовогоГода) -> 2012-08-05 | M4: =EOMONTH(L4,0)+DAY(ДатаНачалаФинансовогоГода) -> 2012-09-05 | N4: =EOMONTH(M4,0)+DAY(ДатаНачалаФинансовогоГода) -> 2012-10-05 | O4: =EOMONTH(N4,0)+DAY(ДатаНачалаФинансовогоГода) -> 2012-11-05 | P4: =EOMONTH(O4,0)+DAY(ДатаНачалаФинансовогоГода) -> 2012-12-05 | R4: Оценка средств
B6: Кассовая наличность (начало месяца) | D6: 100 | E6: =D48 -> 100 | F6: =E48 -> -125 | G6: 45 | H6: -1 | I6: 224 | J6: 269 | K6: 269 | L6: 269 | M6: 269 | N6: 269 | O6: 269 | P6: 269 | R6: =P6 -> 269
B8: Денежные поступления
B9: Продажи за наличный расчет | E9: 125 | F9: 120 | G9: 130 | H9: 100 | R9: =SUM('Отчет о движении денеж. средств'!$D9:$P9) -> 475
B10: Поступления с кред. счетов | H10: 75 | I10: 45 | R10: =SUM('Отчет о движении денеж. средств'!$D10:$P10) -> 120
B11: Заем или др. денежные вливания | E11: 50 | F11: 50 | G11: 50 | H11: 50 | R11: =SUM('Отчет о движении денеж. средств'!$D11:$P11) -> 200
B12: Итого | D12: =SUBTOTAL(109,'Отчет о движении денеж. средств'!$D$9:$D$11) -> 0 | E12: =SUBTOTAL(109,'Отчет о движении денеж. средств'!$E$9:$E$11) -> 175 | F12: =SUBTOTAL(109,'Отчет о движении денеж. средств'!$F$9:$F$11) -> 170 | G12: =SUBTOTAL(109,'Отчет о движении денеж. средств'!$G$9:$G$11) -> 180 | H12: =SUBTOTAL(109,'Отчет о движении денеж. средств'!$H$9:$H$11) -> 225 | I12: =SUBTOTAL(109,'Отчет о движении денеж. средств'!$I$9:$I$11) -> 45 | J12: =SUBTOTAL(109,'Отчет о движении денеж. средств'!$J$9:$J$11) -> 0 | K12: =SUBTOTAL(109,'Отчет о движении денеж. средств'!$K$9:$K$11) -> 0 | L12: =SUBTOTAL(109,'Отчет о движении денеж. средств'!$L$9:$L$11) -> 0 | M12: =SUBTOTAL(109,'Отчет о движении денеж. средств'!$M$9:$M$11) -> 0 | N12: =SUBTOTAL(109,'Отчет о движении денеж. средств'!$N$9:$N$11) -> 0 | O12: =SUBTOTAL(109,'Отчет о движении денеж. средств'!$O$9:$O$11) -> 0 | P12: =SUBTOTAL(109,'Отчет о движении денеж. средств'!$P$9:$P$11) -> 0 | R12: =SUBTOTAL(109,'Отчет о движении денеж. средств'!$R$9:$R$11) -> 795
B13: Общая сумма доступных средств (до обналичивания) | D13: =D6+SUM('Отчет о движении денеж. средств'!$D$9:$D$11) -> 100 | E13: =E6+SUM('Отчет о движении денеж. средств'!$E$9:$E$11) -> 275 | F13: =F6+SUM('Отчет о движении денеж. средств'!$F$9:$F$11) -> 45 | G13: =G6+SUM('Отчет о движении денеж. средств'!$G$9:$G$11) -> 225 | H13: =H6+SUM('Отчет о движении денеж. средств'!$H$9:$H$11) -> 224 | I13: =I6+SUM('Отчет о движении денеж. средств'!$I$9:$I$11) -> 269 | J13: =J6+SUM('Отчет о движении денеж. средств'!$J$9:$J$11) -> 269 | K13: =K6+SUM('Отчет о движении денеж. средств'!$K$9:$K$11) -> 269 | L13: =L6+SUM('Отчет о движении денеж. средств'!$L$9:$L$11) -> 269 | M13: =M6+SUM('Отчет о движении денеж. средств'!$M$9:$M$11) -> 269 | N13: =N6+SUM('Отчет о движении денеж. средств'!$N$9:$N$11) -> 269 | O13: =O6+SUM('Отчет о движении денеж. средств'!$O$9:$O$11) -> 269 | P13: =P6+SUM('Отчет о движении денеж. средств'!$P$9:$P$11) -> 269 | R13: =R6+SUM('Отчет о движении денеж. средств'!$R$9:$R$11) -> 1064
B15: Денежные затраты
B16: Покупки (товаров) | E16: 400 | G16: 226 | R16: =SUM('Отчет о движении денеж. средств'!$D16:$P16) -> 626
B17: Покупки (уточнить) | R17: =SUM('Отчет о движении денеж. средств'!$D17:$P17) -> 0
B18: Покупки (уточнить) | R18: =SUM('Отчет о движении денеж. средств'!$D18:$P18) -> 0
B19: Валовая заработная плата (точное снятие со счета) | R19: =SUM('Отчет о движении денеж. средств'!$D19:$P19) -> 0
B20: Расходы по оплате труда (налоги и пр.) | R20: =SUM('Отчет о движении денеж. средств'!$D20:$P20) -> 0
B21: Сторонние услуги | R21: =SUM('Отчет о движении денеж. средств'!$D21:$P21) -> 0
B22: Расходные материалы (офис. и производ.) | R22: =SUM('Отчет о движении денеж. средств'!$D22:$P22) -> 0
B23: Ремонт и обслуживание | R23: =SUM('Отчет о движении денеж. средств'!$D23:$P23) -> 0
B24: Реклама | R24: =SUM('Отчет о движении денеж. средств'!$D24:$P24) -> 0
B25: Транспортные затраты | R25: =SUM('Отчет о движении денеж. средств'!$D25:$P25) -> 0
B26: Бухгалтерские и юридические услуги | R26: =SUM('Отчет о движении денеж. средств'!$D26:$P26) -> 0
B27: Аренда | R27: =SUM('Отчет о движении денеж. средств'!$D27:$P27) -> 0
B28: Услуги телефонной связи | R28: =SUM('Отчет о движении денеж. средств'!$D28:$P28) -> 0
B29: Коммунальные услуги | R29: =SUM('Отчет о движении денеж. средств'!$D29:$P29) -> 0
B30: Страхование | R30: =SUM('Отчет о движении денеж. средств'!$D30:$P30) -> 0
B31: Налоги (на недвижимость и пр.) | R31: =SUM('Отчет о движении денеж. средств'!$D31:$P31) -> 0
B32: Проценты | R32: =SUM('Отчет о движении денеж. средств'!$D32:$P32) -> 0
B33: Другие затраты (уточнить) | R33: =SUM('Отчет о движении денеж. средств'!$D33:$P33) -> 0
B34: Другое (уточнить) | R34: =SUM('Отчет о движении денеж. средств'!$D34:$P34) -> 0
B35: Другое (уточнить) | R35: =SUM('Отчет о движении денеж. средств'!$D35:$P35) -> 0
B36: Разное | R36: =SUM('Отчет о движении денеж. средств'!$D36:$P36) -> 0
B37: Итого | D37: =SUBTOTAL(109,'Отчет о движении денеж. средств'!$D$16:$D$36) -> 0 | E37: =SUBTOTAL(109,'Отчет о движении денеж. средств'!$E$16:$E$36) -> 400 | F37: =SUBTOTAL(109,'Отчет о движении денеж. средств'!$F$16:$F$36) -> 0 | G37: =SUBTOTAL(109,'Отчет о движении денеж. средств'!$G$16:$G$36) -> 226 | H37: =SUBTOTAL(109,'Отчет о движении денеж. средств'!$H$16:$H$36) -> 0 | I37: =SUBTOTAL(109,'Отчет о движении денеж. средств'!$I$16:$I$36) -> 0 | J37: =SUBTOTAL(109,'Отчет о движении денеж. средств'!$J$16:$J$36) -> 0 | K37: =SUBTOTAL(109,'Отчет о движении денеж. средств'!$K$16:$K$36) -> 0 | L37: =SUBTOTAL(109,'Отчет о движении денеж. средств'!$L$16:$L$36) -> 0 | M37: =SUBTOTAL(109,'Отчет о движении денеж. средств'!$M$16:$M$36) -> 0 | N37: =SUBTOTAL(109,'Отчет о движении денеж. средств'!$N$16:$N$36) -> 0 | O37: =SUBTOTAL(109,'Отчет о движении денеж. средств'!$O$16:$O$36) -> 0 | P37: =SUBTOTAL(109,'Отчет о движении денеж. средств'!$P$16:$P$36) -> 0 | R37: =SUBTOTAL(109,'Отчет о движении денеж. средств'!$R$16:$R$36) -> 626
B39: Денежные затраты (не связанные с прибылью и убытками)
B40: Выплата основной суммы займа | R40: =SUM('Отчет о движении денеж. средств'!$D40:$P40) -> 0
B41: Покупка капитала (уточнить) | R41: =SUM('Отчет о движении денеж. средств'!$D41:$P41) -> 0
B42: Другие пусковые затраты | R42: =SUM('Отчет о движении денеж. средств'!$D42:$P42) -> 0
B43: Резервный фонд и/или условное депонирование | R43: =SUM('Отчет о движении денеж. средств'!$D43:$P43) -> 0
B44: Вывод средств владельцами | R44: =SUM('Отчет о движении денеж. средств'!$D44:$P44) -> 0
B45: Итого | D45: =SUBTOTAL(109,'Отчет о движении денеж. средств'!$D$40:$D$44) -> 0 | E45: =SUBTOTAL(109,'Отчет о движении денеж. средств'!$E$40:$E$44) -> 0 | F45: =SUBTOTAL(109,'Отчет о движении денеж. средств'!$F$40:$F$44) -> 0 | G45: =SUBTOTAL(109,'Отчет о движении денеж. средств'!$G$40:$G$44) -> 0 | H45: =SUBTOTAL(109,'Отчет о движении денеж. средств'!$H$40:$H$44) -> 0 | I45: =SUBTOTAL(109,'Отчет о движении денеж. средств'!$I$40:$I$44) -> 0 | J45: =SUBTOTAL(109,'Отчет о движении денеж. средств'!$J$40:$J$44) -> 0 | K45: =SUBTOTAL(109,'Отчет о движении денеж. средств'!$K$40:$K$44) -> 0 | L45: =SUBTOTAL(109,'Отчет о движении денеж. средств'!$L$40:$L$44) -> 0 | M45: =SUBTOTAL(109,'Отчет о движении денеж. средств'!$M$40:$M$44) -> 0 | N45: =SUBTOTAL(109,'Отчет о движении денеж. средств'!$N$40:$N$44) -> 0 | O45: =SUBTOTAL(109,'Отчет о движении денеж. средств'!$O$40:$O$44) -> 0 | P45: =SUBTOTAL(109,'Отчет о движении денеж. средств'!$P$40:$P$44) -> 0 | R45: =SUBTOTAL(109,'Отчет о движении денеж. средств'!$R$40:$R$44) -> 0
B46: Общая сумма денежных затрат | D46: =SUM('Отчет о движении денеж. средств'!$D$16:$D$36,'Отчет о движении денеж. средств'!$D$40:$D$44) -> 0 | E46: =SUM('Отчет о движении денеж. средств'!$E$16:$E$36,'Отчет о движении денеж. средств'!$E$40:$E$44) -> 400 | F46: =SUM('Отчет о движении денеж. средств'!$F$16:$F$36,'Отчет о движении денеж. средств'!$F$40:$F$44) -> 0 | G46: =SUM('Отчет о движении денеж. средств'!$G$16:$G$36,'Отчет о движении денеж. средств'!$G$40:$G$44) -> 226 | H46: =SUM('Отчет о движении денеж. средств'!$H$16:$H$36,'Отчет о движении денеж. средств'!$H$40:$H$44) -> 0 | I46: =SUM('Отчет о движении денеж. средств'!$I$16:$I$36,'Отчет о движении денеж. средств'!$I$40:$I$44) -> 0 | J46: =SUM('Отчет о движении денеж. средств'!$J$16:$J$36,'Отчет о движении денеж. средств'!$J$40:$J$44) -> 0 | K46: =SUM('Отчет о движении денеж. средств'!$K$16:$K$36,'Отчет о движении денеж. средств'!$K$40:$K$44) -> 0 | L46: =SUM('Отчет о движении денеж. средств'!$L$16:$L$36,'Отчет о движении денеж. средств'!$L$40:$L$44) -> 0 | M46: =SUM('Отчет о движении денеж. средств'!$M$16:$M$36,'Отчет о движении денеж. средств'!$M$40:$M$44) -> 0 | N46: =SUM('Отчет о движении денеж. средств'!$N$16:$N$36,'Отчет о движении денеж. средств'!$N$40:$N$44) -> 0 | O46: =SUM('Отчет о движении денеж. средств'!$O$16:$O$36,'Отчет о движении денеж. средств'!$O$40:$O$44) -> 0 | P46: =SUM('Отчет о движении денеж. средств'!$P$16:$P$36,'Отчет о движении денеж. средств'!$P$40:$P$44) -> 0 | R46: =SUM('Отчет о движении денеж. средств'!$R$16:$R$36,'Отчет о движении денеж. средств'!$R$40:$R$44) -> 626
B48: Денежная позиция (конец месяца) | D48: =D13-D46 -> 100 | E48: -125 | F48: 45 | G48: -1 | H48: 224 | I48: 269 | J48: 269 | K48: 269 | L48: 269 | M48: 269 | N48: 269 | O48: 269 | P48: 269 | R48: =R13-R46 -> 438
